Cogmind - Beta 10.2 @@@ ROGUE MODE // 2022.01.17 @ 21:28:04 Player: SergeMan Result: Destroyed by as-19923 with Assembled Blade Performance ------------- Evolutions (0) 0 Regions Visited (2) 400 Robots Destroyed (36) 180 Value Destroyed (888) 888 Prototype IDs (4) 80 Alien Tech Used (0) 0 Bonus (0) 0 TOTAL SCORE: 1548 Bonus ------- None Cogmind --------- Core Integrity 0/250 Matter 268/300 Energy 250/250 System Corruption 1% Temperature Cool (12) Movement Rolling (100) Ox2 Location -10/Mines Parts ------- > --- POWER (1) -------- Ion Engine > --- PROPULSION (2) --- Light Treads Wheel > --- UTILITY (2) ------ Large Storage Unit Signal Interpreter > --- WEAPON (2) ------- Autogun Autogun > --- INVENTORY (10) --- Ion Engine Light Treads Wheel High-capacity Battery (400) Large Matter Pod (150) Sensor Array Targeting Computer Autogun Autogun Datajack Peak State ------------ > --- POWER ------------ Ion Engine > --- PROPULSION ------- Light Treads Wheel > --- UTILITY ---------- Large Storage Unit Signal Interpreter > --- WEAPON ----------- Autogun Autogun > --- INVENTORY -------- Light Treads Wheel Improved Heat Sink Sensor Array Autogun Autogun Datajack [Rating: 10] Favorites ----------- Power Ion Engine Engine Ion Engine Propulsion Light Treads Treads Light Treads Wheel Wheel Utility Large Storage Unit Device Structural Scanner Storage Large Storage Unit Processor Signal Interpreter Weapon Autogun Energy Gun Particle Gun Ballistic Gun Autogun Special Melee Weapon Datajack Build | -11 -10 -10 ------- Run | Scr Mat Min Slots Evolved . | . . . Power . | . . . Propulsion . | . . . Utility . | . . . Weapon . | . . . Parts Attached 37 | 8 22 7 Power 6 | 1 3 2 Engine 6 | 1 3 2 Core . | . . . Reactor . | . . . Propulsion 11 | 2 6 3 Treads 5 | 1 3 1 Leg . | . . . Wheel 6 | 1 3 2 Hover . | . . . Flight . | . . . Utility 8 | 3 5 . Device 3 | 1 2 . Storage 3 | 1 2 . Processor 2 | 1 1 . Hackware . | . . . Protection . | . . . Artifact . | . . . Weapon 12 | 2 8 2 Energy Gun 3 | 1 2 . Energy Cannon . | . . . Ballistic Gun 8 | 1 5 2 Ballistic Cannon . | . . . Launcher . | . . . Special Weapon . | . . . Impact Weapon . | . . . Slashing Weapon . | . . . Piercing Weapon . | . . . Special Melee Weapon 1 | . 1 . Unidentified Prototypes . | . . . Parts Lost 2 | . 2 . Power 1 | . 1 . Propulsion . | . . . Utility . | . . . Weapon 1 | . 1 . Highest Loss Streak 2 | . 2 . Average Slot Usage (%) 99 | . 98 100 Engine 13 | . 13 14 Treads 14 | . 14 14 Wheel 14 | . 14 14 Device 1 | . 3 . Storage 14 | . 14 14 Processor 12 | . 10 14 Energy Gun 3 | . 7 . Ballistic Gun 23 | . 19 28 Naked Turns . | . . . Heaviest Build 27 | 12 27 27 Greatest Support 20 | 20 20 20 Greatest Overweight (x) 2 | 1 2 2 Average Overweight (x) 1 | . 1 1 Largest Inventory Capacity 10 | 6 10 10 Average Capacity 9 | 5 9 10 Most Carried 10 | 4 10 10 Average Carried 7 | 1 6 10 Final Capacity 10 | 6 10 10 Final Carried 10 | 3 10 10 Class Distribution -------------------- 85% | Mutant 14% | Scavenger-Mutant Dominant Class ---------------- Mutant | -10/Materials Mutant | -10/Mines Resources | -11 -10 -10 ----------- Run | Scr Mat Min Matter Collected 1234 | 273 383 578 Remotely . | . . . Salvage Created 1295 | 107 527 661 Parts 72 | 5 38 29 Haulers Intercepted 2 | . 2 . Recyclers Shooed . | . . . Parts Field Recycled . | . . . Retrieved Matter . | . . . Parts Self-Destructed . | . . . Prevented . | . . . Kills | -11 -10 -10 ------- Run | Scr Mat Min Combat Hostiles Destroyed 28 | . 10 18 Guns 28 | . 10 18 Classes Destroyed 7 | 2 5 . Worker 1 | . 1 . Tunneler 1 | 1 . . Hauler 2 | . 2 . Recycler 1 | 1 . . Watcher 3 | . 3 . Swarmer 8 | . 3 5 Grunt 20 | . 7 13 Best Kill Streak 7 | 2 5 7 Combat Bots Only 7 | . 3 7 Max Kills in Single Turn 2 | 1 1 2 Gunslinging 1 | . . 1 Exploded . | . . . Melee . | . . . Uniques/NPCs Destroyed . | . . . Combat | -11 -10 -10 -------- Run | Scr Mat Min Damage Taken 1211 | . 483 728 Core 277 | . 96 181 Absorbed by Shields . | . . . Core Remaining (%) 100 | 100 . . Volleys Fired 115 | 9 44 62 Largest 2 | 2 2 2 Hottest 85 | 70 85 46 Shots Fired 226 | 18 85 123 Gun 226 | 18 85 123 Cannon . | . . . Launcher . | . . . Special . | . . . Kinetic 182 | 9 50 123 Thermal 44 | 9 35 . Explosive . | . . . Electromagnetic . | . . . Robot Hit Streak 13 | 4 8 13 Robot Miss Streak 9 | 3 9 3 Penetration Max . | . . . Secondary Targets 5 | . . 5 Max Gunslinging Chain 1 | . . 1 Shots Hit Robots 142 | 10 47 85 Core Hits 54 | 3 25 26 Critical Hits 1 | . 1 . Critical Kills . | . . . Critical Parts Destroyed 1 | . 1 . Melee Attacks . | . . . Impact . | . . . Slashing . | . . . Piercing . | . . . Sneak Attacks . | . . . Combat Hostiles . | . . . Follow-up Attacks . | . . . Damage Inflicted 2160 | 130 688 1342 Guns 2160 | 130 688 1342 Cannons . | . . . Explosions . | . . . Melee . | . . . Ramming . | . . . Kinetic 1765 | 41 382 1342 Thermal 395 | 89 306 . Explosive . | . . . Electromagnetic . | . . . Impact . | . . . Slashing . | . . . Piercing . | . . . Highest Corruption 1 | . 1 1 Average Corruption 1 | . 1 1 Corruption Purged . | . . . Effects 11 | . 2 9 Message Errors 6 | . 1 5 Energy Discharges 1 | . . 1 Data Loss (minor) 2 | . 1 1 Targeting Errors 1 | . . 1 Weapon Failures 1 | . . 1 Overload Shots . | . . . Overflow Damage . | . . . Projectiles . | . . . Explosions . | . . . Melee . | . . . Knockbacks . | . . . Impact . | . . . Kinetic . | . . . Secondary . | . . . Self-Inflicted Damage . | . . . Shots . | . . . Rammed . | . . . Targets Rammed . | . . . Kicked . | . . . Crushed . | . . . Highest Temperature 192 | 72 192 49 Average Temperature 39 | 33 64 14 Received Heat Transfer 465 | . 204 261 Siege Activations . | . . . Robots Corrupted . | . . . Combat Hostiles . | . . . Parts Fried . | . . . Impact Corruptions . | . . . Robots Melted . | . . . Combat Hostiles . | . . . Parts Melted 1 | . 1 . Heat Transferred 1036 | 259 777 . Parts Sabotaged . | . . . Parts Stolen . | . . . Parts Stripped . | . . . Power Chain Reactions . | . . . Missiles Intercepted . | . . . Alert | -11 -10 -10 ------- Run | Scr Mat Min Peak Influence 184 | 10 184 180 Initial 6 | . 6 . Average 52 | 3 50 58 Maximum Alert Level . | . . . Low Security (%) 100 | 100 100 100 Level 1 . | . . . Level 2 . | . . . Level 3 . | . . . Level 4 . | . . . Level 5 . | . . . High Security . | . . . Max Security . | . . . Squads Dispatched 1 | . 1 . Investigation 1 | . 1 . Extermination . | . . . Reinforcement . | . . . Assault . | . . . Garrison . | . . . Intercept . | . . . Construction Impeded . | . . . Haulers Reinforced . | . . . Stealth | -11 -10 -10 --------- Run | Scr Mat Min Distress Signals 3 | . 2 1 Communications Jammed . | . . . Distress Signals . | . . . Times Spotted 36 | . 16 20 Peak Tracking Total 5 | . 5 3 Tactical Retreats . | . . . Traps | -11 -10 -10 ------- Run | Scr Mat Min Traps Triggered 1 | . 1 . Indirectly . | . . . Trap Hack Attempts 22 | . 22 . Triggered . | . . . Disarmed . | . . . Reprogrammed 1 | . 1 . Reused . | . . . Traps Extracted . | . . . Installed . | . . . Triggered . | . . . Machines | -11 -10 -10 ---------- Run | Scr Mat Min Machines Disabled 2 | . 1 1 Max in Single Turn 1 | . 1 1 Machines Sabotaged . | . . . Garrisons Compromised . | . . . Overloaded Fab Kills . | . . . Fab Network Shutdowns . | . . . Hacking | -11 -10 -10 --------- Run | Scr Mat Min Machines Accessed 9 | . 9 . Terminals 7 | . 7 . Fabricators . | . . . Repair Stations 1 | . 1 . Recycling Units 1 | . 1 . Scanalyzers . | . . . Garrison Access . | . . . Total Hacks 35 | . 35 . Successful 23 | . 23 . Failed 12 | . 12 . Catastrophic . | . . . Database Lockouts . | . . . Manual 15 | . 15 . Terminals 26 | . 26 . Fabricators . | . . . Repair Stations 8 | . 8 . Recycling Units 1 | . 1 . Scanalyzers . | . . . Garrison Access . | . . . Terminal Hacks 9 | . 9 . Robot Analysis 2 | . 2 . Prototype ID Bank 2 | . 2 . Emergency Access Points 1 | . 1 . Alert Level 1 | . 1 . Locate Traps 1 | . 1 . Zone Layout 2 | . 2 . Fabricator Hacks . | . . . Repair Station Hacks 6 | . 6 . Scan Component 3 | . 3 . Repair 3 | . 3 . Recycling Unit Hacks 1 | . 1 . Report Inventory 1 | . 1 . Scanalyzer . | . . . Garrison Access Hacks . | . . . Unauthorized Hacks 7 | . 7 . Terminals 7 | . 7 . Track 2 | . 2 . Botnet 5 | . 5 . Fabricators . | . . . Repair Stations . | . . . Recycling Units . | . . . Scanalyzers . | . . . Garrison Access . | . . . Data Cores Recovered . | . . . Used . | . . . Hacking Detections 8 | . 8 . Full Trace Events 2 | . 2 . Feedback Events 1 | . 1 . Corruption 1 | . 1 . Feedback Blocked . | . . . Robot Schematics Acquired . | . . . Robots Built . | . . . Matter . | . . . Time . | . . . Total Robot Build Rating . | . . . Part Schematics Acquired . | . . . Parts Built . | . . . Matter . | . . . Time . | . . . Total Part Build Rating . | . . . Parts Repaired 3 | . 3 . Time 84 | . 84 . Parts Recycled . | . . . Recycled Matter . | . . . Retrieved Matter . | . . . Retrieved Components . | . . . Parts Scanalyzed . | . . . Part Schematics Acquired . | . . . Parts Damaged . | . . . Bothacking | -11 -10 -10 ------------ Run | Scr Mat Min Used RIF Installer . | . . . Robots Hacked . | . . . Non-combat . | . . . Combat . | . . . Robot Hacks Applied . | . . . Relay Couplers Released . | . . . Robots Rewired . | . . . Allies Hacked . | . . . Hacks Repelled . | . . . Allies | -11 -10 -10 -------- Run | Scr Mat Min Total Allies . | . . . Largest Group . | . . . Highest-Rated Group . | . . . Highest-Rated Ally . | . . . Total Orders . | . . . Ally Attacks . | . . . Total Damage . | . . . Kills . | . . . Allies Corrupted . | . . . Allies Melted . | . . . Intel | -11 -10 -10 ------- Run | Scr Mat Min Robot Analysis Total 2 | . 2 . Derelict Logs Recovered 3 | . . 3 Drone Launches . | . . . Drone Recoveries . | . . . Exploration | -11 -10 -10 ------------- Run | Scr Mat Min Turns Passed 3032 | 112 1450 1470 Spaces Moved 1758 | 53 1035 670 Core 4 | 4 . . Treads 109 | 14 81 14 Legs . | . . . Wheels 1645 | 35 954 656 Hover . | . . . Flight . | . . . Fastest Speed 50 | 50 90 100 Average Speed 104 | 103 105 101 Slowest Speed 180 | 160 180 180 Overloaded Moves . | . . . Propulsion Burnouts . | . . . Robots Hopped . | . . . Cave-ins Triggered . | . . . Exploration Rate (%) 60 | 5 96 81 Regions Visited 2 Branch Regions 1 Pre-discovered Areas . | . . . Known Exits Taken 1 | . 1 . Unknown Exits Taken 1 | 1 . . Scrap Searched 1 | . . 1 Spaces Dug . | . . . Terrain Destroyed . | . . . Melee . | . . . Projectile . | . . . AOE . | . . . Terrain Rammed . | . . . Walls Destroyed . | . . . Machines Disabled . | . . . Actions | -11 -10 -10 --------- Run | Scr Mat Min Total 2753 | 89 1305 1359 Wait 782 | 11 155 616 Move 1756 | 52 1034 670 Hop . | . . . Pick Up 20 | 7 12 1 Fast Attach 13 | 6 7 . Attach 2 | 1 1 . Detach 2 | . 2 . Swap 22 | 1 14 7 Drop 19 | 2 14 3 Fire 115 | 9 44 62 Melee . | . . . Ram . | . . . Kick . | . . . Crush . | . . . Escape Stasis . | . . . Rewire . | . . . Trap 22 | . 22 . Miscellaneous . | . . . Route ------- -11/Scrapyard -10/Materials (discovered 4 exits: *Mat x3 / *Min) -10/Mines (discovered 2 exits: *Mat x2) History --------- Turn | Location | Event 25 | -11/Scrapyard | Discovered new exit (range 16) 113 | -11/Scrapyard | Entered Materials 313 | -10/Materials | Build established: Mutant 332 | -10/Materials | Discovered new exit (range 10) 417 | -10/Materials | Discovered new exit (range 15) 502 | -10/Materials | Identified exit to Mines 580 | -10/Materials | Repaired Particle Gun 926 | -10/Materials | Repaired Wheel 954 | -10/Materials | Repaired Wheel 1016 | -10/Materials | Discovered new exit (range 16) 1030 | -10/Materials | Identified exit to Materials 1139 | -10/Materials | Discovered exit to Materials (range 14) 1563 | -10/Materials | Entered Mines 1893 | -10/Mines | Learned location of 2 exits from Materials 2021 | -10/Mines | Core integrity fell below 50% 2058 | -10/Mines | Discovered exit to Materials (range 4) 2414 | -10/Mines | Excavation squad dispatched 2414 | -10/Mines | A large section of the Mines collapsed 2664 | -10/Mines | Excavation squad dispatched 2914 | -10/Mines | Excavation squad dispatched 2942 | -10/Mines | Core integrity fell below 20% 2996 | -10/Mines | Destroyed 7 combat bots 3033 | -10/Mines | Destroyed by as-19923 with Assembled Blade Last Messages --------------- 02960_ Acquired 37 matter. 02975_ G-34 Mercenary destroyed. 02975_ Switching to secondary target: G-34 Mercenary. 02975_ G-34 Mercenary destroyed. 02976_ Acquired 37 matter. 02980_ U-05 Engineer lays Concrete. 02982_ Acquired 35 matter. 02988_ Acquired 43 matter. 02993_ Destroyed Mining Laser. 02995_ System corrupted: Autogun jammed. 02999_ Acquired 31 matter. 03005_ System corrupted: Energy discharge (-92). 03006_ Acquired 16 matter. 03012_ T-07 Excavator is excavating. 03014_ G-34 Mercenary destroyed. 03017_ T-07 Excavator is excavating. 03017_ Acquired 16 matter. 03029_ G-34 Mercenary destroyed. 03029_ System corrupted: Autogun targeting data glitched. 03029_ U-05 Engineer sends out distress signal. Map ----- +----------------------------------------------------+ | ?????????????????# ????## #????? | | ?????????????????# ??## ######### #????? | | ?????????????????# ?## ##???????## #????? | | ?????????????????# ?# #?####????#! #????? | | ?????????????????# ## ### ##???##!!##????? | | ????????# ### #????#% #?????? | | ?????????# """ #????#=[#?????? | | ?????????## ########## """ #????# #?????? | | ?